[Event "EWIRCC 2019"]
[Site "Monte-Carlo"]
[Date "2019.11.30"]
[Round "1.11"]
[White "Bulmaga, Irina"]
[Black "Nguyen, Thao Nhi"]
[Result "1-0"]
[ECO "B04"]
[WhiteElo "2435"]
[BlackElo "1872"]
[Annotator "NA"]
[PlyCount "63"]
[EventDate "2019.11.28"]
[EventType "swiss"]
[EventCountry "MNC"]
[SourceTitle "playchess.com"]
[Source "ChessBase"]
[SourceQuality "1"]
[TimeControl "5400+30"]

1. e4 {[%emt 1:15:12]} Nf6 {[%emt 1:15:12]} 2. e5 {[%emt 0:00:26]} Nd5 {[%emt 0:00:21]} 3. d4 {[%emt 0:00:22]} d6 {[%emt 0:00:22]} 4. Nf3 {[%emt 0:00:22]} dxe5 {[%emt 0:00:23]} 5. Nxe5 {[%emt 0:00:23]} c6 {[%emt 0:00:21]} 6. Bc4 {[%emt 0:00:35]} Nd7 {[%emt 0:00:46]} 7. Nf3 {[%emt 0:00:28]} N7f6 {[%emt 0:00:25]} 8. O-O {[%emt 0:00:28]} Bg4 {[%emt 0:00:26]} 9. Be2 {[%emt 0:00:48]} e6 {[%emt 0:00:29]} 10. h3 {[%emt 0:00:31]} Bh5 {[%emt 0:00:23]} 11. c4 {[%emt 0:00:51]} Nb6 {[%emt 0:00:48]} 12. b3 {[%emt 0:00:26]} Be7 {[%emt 0:00:36]} 13. Bb2 {[%emt 0:00:22]} O-O {[%emt 0:00:23]} 14. Ne5 {[%emt 0:00:32]} Bxe2 {[%emt 0:00:29]} 15. Qxe2 {[%emt 0:00:22]} Nbd7 {[%emt 0:00:40]} 16. Nd2 {[%emt 0:00:44]} c5 {[%emt 0:01:49]} 17. Ndf3 {[%emt 0:00:30]} cxd4 {[%emt 0:00:33]} 18. Bxd4 {[%emt 0:00:42]} Qa5 {[%emt 0:01:52]} 19. a3 {[%emt 0:02:06]} Rfd8 {[%emt 0:01:05]} 20. b4 {[%emt 0:00:28]} Qc7 {[%emt 0:00:33]} 21. Nxf7 {[%emt 0:00:39]} Rf8 {[%emt 0:01:35]} 22. N7g5 {[%emt 0:00:29]} Qc6 {[%emt 0:02:59]} 23. b5 {[%emt 0:00:22]} Qd6 {[%emt 0:00:26]} 24. Rad1 {[%emt 0:00:35]} e5 {[%emt 0:02:51]} 25. Bxe5 {[%emt 0:00:25]} Qxa3 {[%emt 0:00:25]} 26. Bxf6 {[%emt 0:00:23]} Nxf6 {[%emt 0:04:12]} 27. Qe6+ {[%emt 0:00:21]} Kh8 {[%emt 0:00:21]} 28. Nf7+ {[%emt 0:00:21]} Rxf7 {[%emt 0:00:22]} 29. Qxf7 {[%emt 0:00:22]} Rf8 {[%emt 0:00:46]} 30. Qe6 {[%emt 0:00:25]} Nh5 {[%emt 0:02:13]} 31. Ne5 {[%emt 0:00:47]} Nf4 {[%emt 0:00:41]} 32. Nf7+ {[%emt 0:00:30]} 1-0

[Event "EWIRCC 2019"]
[Site "Monte-Carlo"]
[Date "2019.11.30"]
[Round "1.12"]
[White "Kurapova, Olga"]
[Black "Paehtz, Elisabeth"]
[Result "0-1"]
[ECO "E21"]
[WhiteElo "1925"]
[BlackElo "2484"]
[Annotator "ChessBase"]
[PlyCount "60"]
[EventDate "2019.11.28"]
[EventType "swiss"]
[EventCountry "MNC"]
[SourceTitle "playchess.com"]
[Source "ChessBase"]
[SourceQuality "1"]
[TimeControl "5400+30"]

1. d4 {[%emt 1:15:11]} e6 {[%emt 1:15:11]} 2. c4 {[%emt 0:00:22]} b6 {[%emt 0:00:21]} 3. Nc3 {[%emt 0:00:22]} Bb4 {[%emt 0:00:22]} 4. Qc2 {[%emt 0:00:22]} Bb7 {[%emt 0:00:28]} 5. a3 {[%emt 0:00:23]} Bxc3+ {[%emt 0:00:22]} 6. Qxc3 {[%emt 0:00:22]} Nf6 {[%emt 0:00:22]} 7. Nf3 {[%emt 0:01:47]} c5 {[%emt 0:01:04]} 8. dxc5 {[%emt 0:00:31]} bxc5 {[%emt 0:00:23]} 9. Bf4 {[%emt 0:01:21]} O-O {[%emt 0:00:43]} 10. Rd1 {[%emt 0:01:49]} Ne4 {[%emt 0:00:38]} 11. Qc2 {[%emt 0:00:31]} Qa5+ {[%emt 0:01:09]} 12. Nd2 {[%emt 0:01:10]} f5 {[%emt 0:01:41]} 13. f3 {[%emt 0:01:43]} Nf6 {[%emt 0:00:21]} 14. e3 {[%emt 0:00:21]} Nc6 {[%emt 0:02:28]} 15. Be2 {[%emt 0:00:40]} e5 {[%emt 0:01:14]} 16. Bg3 {[%emt 0:00:23]} f4 {[%emt 0:01:13]} 17. Bf2 {[%emt 0:01:37]} fxe3 {[%emt 0:01:05]} 18. Bxe3 {[%emt 0:00:23]} Nd4 {[%emt 0:00:21]} 19. Bxd4 {[%emt 0:01:35]} cxd4 {[%emt 0:01:13]} 20. O-O {[%emt 0:00:27]} Rac8 {[%emt 0:00:26]} 21. Ne4 {[%emt 0:00:52]} Nd5 {[%emt 0:02:15]} 22. Nd6 {[%emt 0:01:20]} Ne3 {[%emt 0:00:30]} 23. Qb3 {[%emt 0:00:48]} Rb8 {[%emt 0:01:33]} 24. Rc1 {[%emt 0:03:28]} Bxf3 {[%emt 0:01:10]} 25. Qa2 {[%emt 0:01:18]} Bxg2 {[%emt 0:02:51]} 26. c5+ {[%emt 0:01:57]} Bd5 {[%emt 0:00:22]} 27. Bc4 {[%emt 0:00:20]} Nxc4 {[%emt 0:00:27]} 28. Nxc4 {[%emt 0:00:57]} Qd8 {[%emt 0:00:33]} 29. Rxf8+ {[%emt 0:00:45]} Kxf8 {[%emt 0:00:30]} 30. Rf1+ {[%emt 0:01:06]} Kg8 {[%emt 0:00:22]} 0-1

[Event "EWIRCC 2019"]
[Site "Monte-Carlo"]
[Date "2019.11.30"]
[Round "1.13"]
[White "Girya, Olga"]
[Black "Johnsen, Sylvia"]
[Result "1-0"]
[ECO "D35"]
[WhiteElo "2476"]
[BlackElo "1898"]
[Annotator "ChessBase"]
[PlyCount "76"]
[EventDate "2019.11.28"]
[EventType "swiss"]
[EventCountry "MNC"]
[SourceTitle "playchess.com"]
[Source "ChessBase"]
[SourceQuality "1"]
[TimeControl "5400+30"]

1. d4 {[%emt 1:15:12]} d5 {[%emt 1:15:11]} 2. c4 {[%emt 0:00:22]} e6 {[%emt 0:00:21]} 3. Nc3 {[%emt 0:00:23]} Nf6 {[%emt 0:00:21]} 4. cxd5 {[%emt 0:00:25]} exd5 {[%emt 0:00:22]} 5. Bg5 {[%emt 0:00:22]} Be7 {[%emt 0:00:21]} 6. e3 {[%emt 0:00:21]} Nbd7 {[%emt 0:00:23]} 7. Bd3 {[%emt 0:00:34]} h6 {[%emt 0:00:22]} 8. Bf4 {[%emt 0:00:26]} c6 {[%emt 0:00:21]} 9. h3 {[%emt 0:00:28]} O-O {[%emt 0:00:23]} 10. Nf3 {[%emt 0:00:23]} Re8 {[%emt 0:00:21]} 11. O-O {[%emt 0:00:23]} Bf8 {[%emt 0:00:35]} 12. Qc2 {[%emt 0:00:42]} c5 {[%emt 0:00:55]} 13. dxc5 {[%emt 0:00:51]} Nxc5 {[%emt 0:00:25]} 14. Rfd1 {[%emt 0:01:01]} Nxd3 {[%emt 0:00:28]} 15. Qxd3 {[%emt 0:00:23]} Be6 {[%emt 0:00:29]} 16. Nb5 {[%emt 0:01:23]} Re7 {[%emt 0:00:23]} 17. Rac1 {[%emt 0:05:19]} a6 {[%emt 0:00:39]} 18. Nbd4 {[%emt 0:10:02]} Ne4 {[%emt 0:00:46]} 19. Nxe6 {[%emt 0:00:00]} fxe6 {[%emt 0:00:31]} 20. Ne5 {[%emt 0:00:00]} Rc7 {[%emt 0:00:47]} 21. f3 {[%emt 0:00:00]} Nf6 {[%emt 0:01:04]} 22. Rxc7 {[%emt 0:00:00]} Qxc7 {[%emt 0:00:26]} 23. Qg6 {[%emt 0:00:00]} Bd6 {[%emt 0:03:06]} 24. Ng4 {[%emt 0:00:00]} Bxf4 {[%emt 0:01:46]} 25. Nxf6+ {[%emt 0:00:00]} Kf8 {[%emt 0:00:24]} 26. Nh7+ {[%emt 0:00:00]} Kg8 {[%emt 0:00:32]} 27. Nf6+ {[%emt 0:00:00]} Kf8 {[%emt 0:00:21]} 28. exf4 {[%emt 0:00:00]} Qb6+ {[%emt 0:01:24]} 29. Kh2 {[%emt 0:00:00]} gxf6 {[%emt 0:00:51]} 30. Qxf6+ {[%emt 0:00:00]} Kg8 {[%emt 0:00:21]} 31. Qg6+ {[%emt 0:00:00]} Kf8 {[%emt 0:00:22]} 32. Qxh6+ {[%emt 0:00:26]} Ke7 {[%emt 0:00:21]} 33. Qg7+ {[%emt 0:00:22]} Kd6 {[%emt 0:00:25]} 34. Qe5+ {[%emt 0:00:26]} Kd7 {[%emt 0:00:31]} 35. f5 {[%emt 0:00:23]} Qd6 {[%emt 0:00:42]} 36. fxe6+ {[%emt 0:00:22]} Ke7 {[%emt 0:00:21]} 37. Rxd5 {[%emt 0:00:25]} Qxe5+ {[%emt 0:00:24]} 38. Rxe5 {[%emt 0:00:21]} Rc8 {[%emt 0:00:21]} 1-0

[Event "EWIRCC 2019"]
[Site "Monte-Carlo"]
[Date "2019.11.30"]
[Round "1.14"]
[White "Cramling Bellon, Anna"]
[Black "Daulyte-Cornette, Deimante"]
[Result "0-1"]
[ECO "A50"]
[WhiteElo "2061"]
[BlackElo "2405"]
[Annotator "NA"]
[PlyCount "56"]
[EventDate "2019.11.28"]
[EventType "swiss"]
[EventCountry "MNC"]
[SourceTitle "playchess.com"]
[Source "ChessBase"]
[SourceQuality "1"]
[TimeControl "5400+30"]

1. d4 {[%emt 1:15:12]} Nf6 {[%emt 1:15:12]} 2. c4 {[%emt 0:00:21]} b6 {[%emt 0:00:23]} 3. Nf3 {[%emt 0:01:16]} Bb7 {[%emt 0:00:27]} 4. g3 {[%emt 0:00:22]} g6 {[%emt 0:00:34]} 5. Bg2 {[%emt 0:00:21]} Bg7 {[%emt 0:00:23]} 6. O-O {[%emt 0:00:23]} O-O {[%emt 0:00:31]} 7. Nc3 {[%emt 0:00:26]} Ne4 {[%emt 0:00:33]} 8. Qc2 {[%emt 0:01:00]} Nxc3 {[%emt 0:01:11]} 9. bxc3 {[%emt 0:01:12]} Nc6 {[%emt 0:03:08]} 10. e4 {[%emt 0:05:34]} Na5 {[%emt 0:01:06]} 11. Nd2 {[%emt 0:00:39]} c5 {[%emt 0:03:09]} 12. d5 {[%emt 0:05:17]} Ba6 {[%emt 0:00:49]} 13. Qd3 {[%emt 0:00:26]} d6 {[%emt 0:01:05]} 14. Re1 {[%emt 0:00:40]} Qd7 {[%emt 0:00:43]} 15. Bf1 {[%emt 0:00:53]} Qa4 {[%emt 0:00:42]} 16. Be2 {[%emt 0:00:49]} Rab8 {[%emt 0:00:36]} 17. Bd1 {[%emt 0:01:04]} Bxc4 {[%emt 0:01:16]} 18. Qf3 {[%emt 0:01:12]} Qd7 {[%emt 0:00:29]} 19. Nxc4 {[%emt 0:00:22]} Nxc4 {[%emt 0:00:22]} 20. a4 {[%emt 0:00:45]} a6 {[%emt 0:02:09]} 21. Be2 {[%emt 0:00:31]} b5 {[%emt 0:00:36]} 22. Bf4 {[%emt 0:01:11]} Ne5 {[%emt 0:01:37]} 23. Bxe5 {[%emt 0:01:18]} Bxe5 {[%emt 0:00:22]} 24. axb5 {[%emt 0:00:21]} axb5 {[%emt 0:00:22]} 25. Rab1 {[%emt 0:00:23]} Rb7 {[%emt 0:01:05]} 26. Qe3 {[%emt 0:00:44]} Bg7 {[%emt 0:00:47]} 27. f4 {[%emt 0:00:30]} b4 {[%emt 0:00:40]} 28. cxb4 {[%emt 0:00:22]} Bd4 {[%emt 0:00:22]} 0-1

[Event "EWIRCC 2019"]
[Site "Monte-Carlo"]
[Date "2019.11.30"]
[Round "1.15"]
[White "Socko, Monika"]
[Black "Kazarian, Anna-Maja"]
[Result "1-0"]
[ECO "E16"]
[WhiteElo "2417"]
[BlackElo "2109"]
[Annotator "NA"]
[PlyCount "66"]
[EventDate "2019.11.28"]
[EventType "swiss"]
[EventCountry "MNC"]
[SourceTitle "playchess.com"]
[Source "ChessBase"]
[SourceQuality "1"]
[TimeControl "5400+30"]

1. d4 {[%emt 1:15:11]} Nf6 {[%emt 1:15:11]} 2. c4 {[%emt 0:00:22]} e6 {[%emt 0:00:22]} 3. Nf3 {[%emt 0:00:22]} d5 {[%emt 0:00:21]} 4. g3 {[%emt 0:00:22]} Bb4+ {[%emt 0:00:22]} 5. Nbd2 {[%emt 0:00:23]} O-O {[%emt 0:00:56]} 6. Bg2 {[%emt 0:00:22]} b6 {[%emt 0:01:59]} 7. O-O {[%emt 0:00:32]} Bb7 {[%emt 0:00:37]} 8. Qc2 {[%emt 0:00:25]} Nbd7 {[%emt 0:00:42]} 9. b3 {[%emt 0:00:26]} a5 {[%emt 0:00:31]} 10. a3 {[%emt 0:01:15]} Be7 {[%emt 0:00:28]} 11. Bb2 {[%emt 0:00:22]} c5 {[%emt 0:01:16]} 12. cxd5 {[%emt 0:01:30]} exd5 {[%emt 0:00:34]} 13. Rac1 {[%emt 0:00:23]} a4 {[%emt 0:01:04]} 14. bxa4 {[%emt 0:02:03]} Bc6 {[%emt 0:01:30]} 15. Ne5 {[%emt 0:00:22]} Bxa4 {[%emt 0:00:21]} 16. Qc3 {[%emt 0:00:21]} Rc8 {[%emt 0:03:29]} 17. Qd3 {[%emt 0:02:34]} c4 {[%emt 0:01:42]} 18. Qf5 {[%emt 0:00:49]} g6 {[%emt 0:01:39]} 19. Qf3 {[%emt 0:01:21]} Re8 {[%emt 0:01:30]} 20. Nb1 {[%emt 0:00:39]} Nxe5 {[%emt 0:00:51]} 21. dxe5 {[%emt 0:00:22]} Ne4 {[%emt 0:00:21]} 22. h4 {[%emt 0:02:47]} h5 {[%emt 0:01:36]} 23. Nc3 {[%emt 0:01:26]} Nxc3 {[%emt 0:00:42]} 24. Qxc3 {[%emt 0:00:30]} b5 {[%emt 0:01:50]} 25. e3 {[%emt 0:02:02]} Rb8 {[%emt 0:00:30]} 26. e6 {[%emt 0:00:43]} f6 {[%emt 0:00:35]} 27. Qd4 {[%emt 0:00:29]} b4 {[%emt 0:00:28]} 28. axb4 {[%emt 0:00:25]} Rxb4 {[%emt 0:00:28]} 29. Ba3 {[%emt 0:00:48]} Rb5 {[%emt 0:01:58]} 30. Bxe7 {[%emt 0:00:23]} Qxe7 {[%emt 0:00:21]} 31. Bxd5 {[%emt 0:05:31]} Rd8 {[%emt 0:00:32]} 32. e4 {[%emt 0:00:00]} Bb3 {[%emt 0:00:55]} 33. Ra1 {[%emt 0:00:00]} Rbxd5 {[%emt 0:00:49]} 1-0

[Event "EWIRCC 2019"]
[Site "Monte-Carlo"]
[Date "2019.11.30"]
[Round "1.17"]
[White "Kashlinskaya, Alina"]
[Black "Tomasi, Elise"]
[Result "1-0"]
[ECO "D31"]
[WhiteElo "2486"]
[BlackElo "1984"]
[Annotator "ChessBase"]
[PlyCount "93"]
[EventDate "2019.11.28"]
[EventType "swiss"]
[EventCountry "MNC"]
[SourceTitle "playchess.com"]
[Source "ChessBase"]
[SourceQuality "1"]
[TimeControl "5400+30"]

1. d4 {[%emt 1:15:13]} d5 {[%emt 1:15:12]} 2. c4 {[%emt 0:00:21]} e6 {[%emt 0:00:21]} 3. Nc3 {[%emt 0:00:22]} Be7 {[%emt 0:00:21]} 4. cxd5 {[%emt 0:00:23]} exd5 {[%emt 0:00:22]} 5. Bf4 {[%emt 0:00:22]} c6 {[%emt 0:00:21]} 6. e3 {[%emt 0:00:22]} Bf5 {[%emt 0:00:41]} 7. Nge2 {[%emt 0:00:32]} Nf6 {[%emt 0:00:55]} 8. Ng3 {[%emt 0:00:31]} Bg6 {[%emt 0:00:21]} 9. h4 {[%emt 0:00:32]} h6 {[%emt 0:00:44]} 10. h5 {[%emt 0:00:30]} Bh7 {[%emt 0:00:31]} 11. Bd3 {[%emt 0:00:23]} Bd6 {[%emt 0:02:06]} 12. Bxd6 {[%emt 0:02:09]} Qxd6 {[%emt 0:00:38]} 13. Bxh7 {[%emt 0:00:41]} Nxh7 {[%emt 0:00:47]} 14. Qg4 {[%emt 0:00:47]} O-O {[%emt 0:01:31]} 15. Qxg7+ {[%emt 0:01:44]} Kxg7 {[%emt 0:00:27]} 16. Nf5+ {[%emt 0:00:21]} Kh8 {[%emt 0:00:45]} 17. Nxd6 {[%emt 0:00:23]} Nd7 {[%emt 0:00:22]} 18. O-O-O {[%emt 0:00:54]} b6 {[%emt 0:01:17]} 19. Nf5 {[%emt 0:00:30]} Rae8 {[%emt 0:02:52]} 20. g4 {[%emt 0:03:55]} Re6 {[%emt 0:01:16]} 21. f3 {[%emt 0:00:32]} Ng5 {[%emt 0:01:10]} 22. Rhf1 {[%emt 0:01:23]} Kh7 {[%emt 0:01:49]} 23. Ne2 {[%emt 0:00:38]} Nf6 {[%emt 0:01:42]} 24. Nf4 {[%emt 0:01:16]} Ree8 {[%emt 0:00:27]} 25. Kb1 {[%emt 0:00:22]} Rc8 {[%emt 0:01:31]} 26. Rc1 {[%emt 0:00:28]} Rc7 {[%emt 0:00:44]} 27. Nd3 {[%emt 0:01:00]} Re8 {[%emt 0:02:13]} 28. Rc2 {[%emt 0:01:11]} Re6 {[%emt 0:01:17]} 29. b4 {[%emt 0:01:01]} a6 {[%emt 0:01:07]} 30. Kb2 {[%emt 0:00:46]} Re8 {[%emt 0:00:46]} 31. a3 {[%emt 0:01:03]} Rb8 {[%emt 0:00:25]} 32. Ka2 {[%emt 0:00:31]} Nd7 {[%emt 0:00:29]} 33. f4 {[%emt 0:01:31]} Ne4 {[%emt 0:01:00]} 34. Ne7 {[%emt 0:00:21]} Ndc5 {[%emt 0:00:00]} 35. Nxd5 {[%emt 0:01:00]} cxd5 {[%emt 0:00:15]} 36. dxc5 {[%emt 0:00:21]} bxc5 {[%emt 0:00:24]} 37. Nxc5 {[%emt 0:00:28]} Nd6 {[%emt 0:00:49]} 38. Rd1 {[%emt 0:00:36]} a5 {[%emt 0:00:32]} 39. Rxd5 {[%emt 0:01:05]} axb4 {[%emt 0:00:21]} 40. axb4 {[%emt 0:00:21]} Nb5 {[%emt 0:00:52]} 41. Rd7 {[%emt 0:00:55]} Ra8+ {[%emt 0:00:30]} 42. Kb2 {[%emt 0:00:26]} Rac8 {[%emt 0:00:32]} 43. Rxc7 {[%emt 0:00:28]} Rxc7 {[%emt 0:00:21]} 44. Rd2 {[%emt 0:00:28]} Re7 {[%emt 0:00:23]} 45. e4 {[%emt 0:00:28]} Kg7 {[%emt 0:00:24]} 46. e5 {[%emt 0:00:49]} Ra7 {[%emt 0:00:39]} 47. Rd7 {[%emt 0:00:38]} 1-0

[Event "EWIRCC 2019"]
[Site "Monte-Carlo"]
[Date "2019.11.30"]
[Round "1.18"]
[White "Shivacheva, Donika"]
[Black "Guichard, Pauline"]
[Result "0-1"]
[ECO "C52"]
[WhiteElo "1854"]
[BlackElo "2407"]
[Annotator "NA"]
[PlyCount "48"]
[EventDate "2019.11.28"]
[EventType "swiss"]
[EventCountry "MNC"]
[SourceTitle "playchess.com"]
[Source "ChessBase"]
[SourceQuality "1"]
[TimeControl "5400+30"]

1. e4 {[%emt 1:15:13]} e5 {[%emt 1:15:11]} 2. Nf3 {[%emt 0:00:23]} Nc6 {[%emt 0:00:23]} 3. Bc4 {[%emt 0:00:36]} Bc5 {[%emt 0:00:24]} 4. b4 {[%emt 0:00:29]} Bxb4 {[%emt 0:00:24]} 5. c3 {[%emt 0:00:23]} Ba5 {[%emt 0:01:50]} 6. Qb3 {[%emt 0:00:36]} Qe7 {[%emt 0:02:35]} 7. d4 {[%emt 0:03:02]} Bb6 {[%emt 0:02:41]} 8. Ba3 {[%emt 0:01:46]} d6 {[%emt 0:01:04]} 9. dxe5 {[%emt 0:04:57]} Nh6 {[%emt 0:00:32]} 10. exd6 {[%emt 0:04:56]} Qxe4+ {[%emt 0:00:56]} 11. Be2 {[%emt 0:01:25]} Be6 {[%emt 0:04:38]} 12. Nbd2 {[%emt 0:00:44]} Qg4 {[%emt 0:02:14]} 13. d7+ {[%emt 0:00:50]} Bxd7 {[%emt 0:01:24]} 14. O-O {[%emt 0:00:45]} O-O-O {[%emt 0:00:40]} 15. c4 {[%emt 0:00:32]} Rhe8 {[%emt 0:01:16]} 16. Rfe1 {[%emt 0:00:27]} Nd4 {[%emt 0:01:13]} 17. Qd3 {[%emt 0:01:06]} Bf5 {[%emt 0:00:42]} 18. Nxd4 {[%emt 0:00:29]} Qxd4 {[%emt 0:00:21]} 19. Qxd4 {[%emt 0:00:24]} Bxd4 {[%emt 0:00:35]} 20. Rad1 {[%emt 0:00:45]} Bc3 {[%emt 0:00:25]} 21. Bc1 {[%emt 0:00:24]} Bc2 {[%emt 0:00:26]} 22. Bf3 {[%emt 0:00:23]} Bxd1 {[%emt 0:00:23]} 23. Rxd1 {[%emt 0:00:21]} Bxd2 {[%emt 0:00:22]} 24. Bxd2 {[%emt 0:00:25]} Rxd2 {[%emt 0:00:23]} 0-1

[Event "EWIRCC 2019"]
[Site "Monte-Carlo"]
[Date "2019.11.30"]
[Round "1.19"]
[White "Mkrtchian, Lilit"]
[Black "Berezovska, Svetlana"]
[Result "1-0"]
[ECO "A34"]
[WhiteElo "2402"]
[BlackElo "1810"]
[Annotator "NA"]
[PlyCount "51"]
[EventDate "2019.11.28"]
[EventType "swiss"]
[EventCountry "MNC"]
[SourceTitle "playchess.com"]
[Source "ChessBase"]
[SourceQuality "1"]
[TimeControl "5400+30"]

1. c4 {[%emt 1:15:13]} c5 {[%emt 1:15:12]} 2. g3 {[%emt 0:00:23]} g6 {[%emt 0:00:24]} 3. Bg2 {[%emt 0:00:22]} Bg7 {[%emt 0:00:22]} 4. Nc3 {[%emt 0:00:22]} Bxc3 {[%emt 0:01:11]} 5. bxc3 {[%emt 0:00:52]} Nf6 {[%emt 0:00:34]} 6. e4 {[%emt 0:00:29]} Nc6 {[%emt 0:01:18]} 7. d3 {[%emt 0:00:26]} O-O {[%emt 0:00:37]} 8. Bh6 {[%emt 0:01:08]} Re8 {[%emt 0:00:27]} 9. h4 {[%emt 0:00:27]} d6 {[%emt 0:01:01]} 10. Bf3 {[%emt 0:02:06]} Qa5 {[%emt 0:04:19]} 11. Qd2 {[%emt 0:00:32]} Bg4 {[%emt 0:01:08]} 12. h5 {[%emt 0:02:06]} Ne5 {[%emt 0:03:09]} 13. Bxg4 {[%emt 0:00:29]} Nexg4 {[%emt 0:01:07]} 14. hxg6 {[%emt 0:02:19]} fxg6 {[%emt 0:00:28]} 15. Bf4 {[%emt 0:02:07]} Nh5 {[%emt 0:02:25]} 16. f3 {[%emt 0:01:23]} Nxf4 {[%emt 0:01:32]} 17. gxf4 {[%emt 0:01:16]} Nf6 {[%emt 0:00:26]} 18. Ne2 {[%emt 0:01:18]} Rf8 {[%emt 0:01:11]} 19. Kf2 {[%emt 0:00:28]} e6 {[%emt 0:01:13]} 20. Rag1 {[%emt 0:00:34]} Kf7 {[%emt 0:00:33]} 21. e5 {[%emt 0:02:37]} dxe5 {[%emt 0:00:28]} 22. fxe5 {[%emt 0:00:22]} Nh5 {[%emt 0:00:29]} 23. Qh6 {[%emt 0:01:20]} Ke8 {[%emt 0:01:37]} 24. Rxh5 {[%emt 0:01:54]} gxh5 {[%emt 0:00:22]} 25. Qxe6+ {[%emt 0:00:23]} Kd8 {[%emt 0:00:28]} 26. Rg7 {[%emt 0:00:54]} 1-0

[Event "EWIRCC 2019"]
[Site "Monte-Carlo"]
[Date "2019.11.30"]
[Round "1.20"]
[White "Jose Polanco, Kenia"]
[Black "Gaponenko, Inna"]
[Result "0-1"]
[ECO "A41"]
[WhiteElo "1879"]
[BlackElo "2427"]
[Annotator "NA"]
[PlyCount "92"]
[EventDate "2019.11.28"]
[EventType "swiss"]
[EventCountry "MNC"]
[SourceTitle "playchess.com"]
[Source "ChessBase"]
[SourceQuality "1"]
[TimeControl "5400+30"]

1. d4 {[%emt 1:15:12]} d6 {[%emt 1:15:11]} 2. Bf4 {[%emt 0:00:24]} g6 {[%emt 0:00:20]} 3. e3 {[%emt 0:00:23]} Bg7 {[%emt 0:00:21]} 4. Nf3 {[%emt 0:00:23]} Nd7 {[%emt 0:00:21]} 5. Be2 {[%emt 0:00:27]} e5 {[%emt 0:00:22]} 6. Bg3 {[%emt 0:00:44]} Ne7 {[%emt 0:00:30]} 7. dxe5 {[%emt 0:01:17]} dxe5 {[%emt 0:00:26]} 8. e4 {[%emt 0:00:42]} O-O {[%emt 0:00:37]} 9. O-O {[%emt 0:00:29]} Nc6 {[%emt 0:03:08]} 10. Nc3 {[%emt 0:02:45]} Nc5 {[%emt 0:00:21]} 11. Qxd8 {[%emt 0:01:37]} Rxd8 {[%emt 0:00:22]} 12. Rad1 {[%emt 0:00:27]} Bg4 {[%emt 0:00:46]} 13. h3 {[%emt 0:00:53]} Bxf3 {[%emt 0:00:26]} 14. Bxf3 {[%emt 0:00:22]} Nd4 {[%emt 0:00:22]} 15. Nd5 {[%emt 0:01:28]} c6 {[%emt 0:05:14]} 16. Ne3 {[%emt 0:01:30]} Nxf3+ {[%emt 0:00:22]} 17. gxf3 {[%emt 0:00:21]} Ne6 {[%emt 0:00:20]} 18. c3 {[%emt 0:02:55]} b5 {[%emt 0:00:22]} 19. Kg2 {[%emt 0:02:00]} f6 {[%emt 0:00:33]} 20. h4 {[%emt 0:00:38]} Bf8 {[%emt 0:00:39]} 21. h5 {[%emt 0:00:59]} g5 {[%emt 0:00:33]} 22. Nf5 {[%emt 0:00:53]} Kf7 {[%emt 0:00:58]} 23. Ne3 {[%emt 0:01:18]} Rxd1 {[%emt 0:00:30]} 24. Rxd1 {[%emt 0:00:21]} Rd8 {[%emt 0:00:22]} 25. Rxd8 {[%emt 0:00:44]} Nxd8 {[%emt 0:00:21]} 26. Ng4 {[%emt 0:00:37]} Ke6 {[%emt 0:03:18]} 27. Kf1 {[%emt 0:00:57]} Nb7 {[%emt 0:00:21]} 28. Ke2 {[%emt 0:00:32]} Nd6 {[%emt 0:00:21]} 29. Kd3 {[%emt 0:00:51]} Ne8 {[%emt 0:00:23]} 30. c4 {[%emt 0:00:35]} Ng7 {[%emt 0:02:01]} 31. h6 {[%emt 0:00:32]} Ne8 {[%emt 0:00:21]} 32. cxb5 {[%emt 0:00:45]} cxb5 {[%emt 0:00:21]} 33. b3 {[%emt 0:00:32]} Nd6 {[%emt 0:00:28]} 34. a4 {[%emt 0:00:31]} bxa4 {[%emt 0:00:47]} 35. bxa4 {[%emt 0:00:22]} Nf7 {[%emt 0:00:21]} 36. Kc4 {[%emt 0:00:41]} Nxh6 {[%emt 0:00:45]} 37. Nxh6 {[%emt 0:00:49]} Bxh6 {[%emt 0:00:21]} 38. Kb5 {[%emt 0:00:20]} Bf8 {[%emt 0:00:23]} 39. Ka6 {[%emt 0:01:24]} Bc5 {[%emt 0:00:22]} 40. Kb5 {[%emt 0:00:26]} Bd4 {[%emt 0:00:21]} 41. Kc4 {[%emt 0:00:39]} Bb6 {[%emt 0:00:21]} 42. Kd3 {[%emt 0:00:46]} h5 {[%emt 0:00:22]} 43. f4 {[%emt 0:00:38]} exf4 {[%emt 0:00:29]} 44. Bh2 {[%emt 0:00:30]} Bxf2 {[%emt 0:00:21]} 45. Ke2 {[%emt 0:00:29]} Bb6 {[%emt 0:00:23]} 46. Kf3 {[%emt 0:00:24]} Ke5 {[%emt 0:00:22]} 0-1